[Event "Early-Titled-Tuesday-Blitz-October-03-2023"]
[Site "Chess.com"]
[Date "2023.10.03"]
[Round "1"]
[White "biostatistician"]
[Black "brunomorado"]
[Result "1-0"]
[WhiteElo "2632"]
[BlackElo "2331"]
[TimeControl "180+1"]
[EndTime "8:07:19 PDT"]
[Termination "biostatistician won by checkmate"]

1. d4 {[%clk 0:03:00]} 1... d5 {[%clk 0:03:00.2]} 2. Nf3 {[%clk 0:03:00.9]} 2...
Nf6 {[%clk 0:03:00.2]} 3. c4 {[%clk 0:03:01.8]} 3... c6 {[%clk 0:03:00.4]} 4.
cxd5 {[%clk 0:03:01.7]} 4... cxd5 {[%clk 0:03:01.3]} 5. Nc3 {[%clk 0:03:02.6]}
5... Nc6 {[%clk 0:03:01.6]} 6. Bf4 {[%clk 0:03:03]} 6... a6 {[%clk 0:02:56.3]}
7. Rc1 {[%clk 0:02:59.9]} 7... Bf5 {[%clk 0:02:55.7]} 8. e3 {[%clk 0:02:59.8]}
8... Rc8 {[%clk 0:02:55.9]} 9. Ne5 {[%clk 0:02:59.1]} 9... Qb6 {[%clk
0:02:50.1]} 10. Bd3 {[%clk 0:02:32.8]} 10... Bxd3 {[%clk 0:02:31.3]} 11. Qxd3
{[%clk 0:02:33.7]} 11... Qxb2 {[%clk 0:02:12.6]} 12. O-O {[%clk 0:02:31.5]}
12... Nb4 {[%clk 0:02:11.5]} 13. Qe2 {[%clk 0:01:59.8]} 13... Qa3 {[%clk
0:01:48.9]} 14. Qd2 {[%clk 0:01:20.6]} 14... Rd8 {[%clk 0:01:15.5]} 15. Nb1
{[%clk 0:01:00.8]} 15... Qa4 {[%clk 0:01:08.2]} 16. Rc7 {[%clk 0:00:51.3]} 16...
Ne4 {[%clk 0:00:59.9]} 17. Qb2 {[%clk 0:00:35]} 17... f6 {[%clk 0:00:34.4]} 18.
Nf3 {[%clk 0:00:34.8]} 18... b5 {[%clk 0:00:31.6]} 19. a3 {[%clk 0:00:28.3]}
19... Nd3 {[%clk 0:00:31.1]} 20. Qe2 {[%clk 0:00:22.1]} 20... Nxf4 {[%clk
0:00:27.2]} 21. exf4 {[%clk 0:00:21.8]} 21... Qa5 {[%clk 0:00:20.7]} 22. Rfc1
{[%clk 0:00:20.6]} 22... g6 {[%clk 0:00:17]} 23. Nbd2 {[%clk 0:00:18.1]} 23...
Nxd2 {[%clk 0:00:15.7]} 24. Nxd2 {[%clk 0:00:19]} 24... Kf7 {[%clk 0:00:15.2]}
25. R7c6 {[%clk 0:00:15.8]} 25... Qxa3 {[%clk 0:00:14.4]} 26. Qe6+ {[%clk
0:00:15.1]} 26... Kg7 {[%clk 0:00:14.9]} 27. Nf3 {[%clk 0:00:15.1]} 27... Rd6
{[%clk 0:00:15.2]} 28. Qc8 {[%clk 0:00:10.3]} 28... Rxc6 {[%clk 0:00:14.8]} 29.
Qxc6 {[%clk 0:00:11.2]} 29... e6 {[%clk 0:00:13.9]} 30. Re1 {[%clk 0:00:11]}
30... Kf7 {[%clk 0:00:13.5]} 31. Qxe6+ {[%clk 0:00:11]} 31... Kg7 {[%clk
0:00:13.9]} 32. Qd7+ {[%clk 0:00:11.2]} 32... Kh6 {[%clk 0:00:13.6]} 33. g4
{[%clk 0:00:11.7]} 33... Bd6 {[%clk 0:00:13.3]} 34. g5+ {[%clk 0:00:11.8]} 34...
fxg5 {[%clk 0:00:14.2]} 35. fxg5+ {[%clk 0:00:12.4]} 35... Kh5 {[%clk
0:00:07.2]} 36. Qh3# {[%clk 0:00:13.3]} 1-0

[Event "Early-Titled-Tuesday-Blitz-October-03-2023"]
[Site "Chess.com"]
[Date "2023.10.03"]
[Round "1"]
[White "CarrotsandPizza"]
[Black "hakanazeri2"]
[Result "0-1"]
[WhiteElo "2275"]
[BlackElo "2611"]
[TimeControl "180+1"]
[EndTime "8:07:19 PDT"]
[Termination "hakanazeri2 won on time"]

1. e4 {[%clk 0:03:00.9]} 1... c5 {[%clk 0:02:58.3]} 2. Nf3 {[%clk 0:02:59.6]}
2... e6 {[%clk 0:02:57.3]} 3. d4 {[%clk 0:02:59.8]} 3... cxd4 {[%clk 0:02:58.2]}
4. Nxd4 {[%clk 0:03:00.3]} 4... Nc6 {[%clk 0:02:59.1]} 5. Nxc6 {[%clk
0:02:59.5]} 5... bxc6 {[%clk 0:02:59.1]} 6. Nd2 {[%clk 0:03:00.1]} 6... d5
{[%clk 0:02:58.1]} 7. Bd3 {[%clk 0:03:00]} 7... Bd6 {[%clk 0:02:55.7]} 8. O-O
{[%clk 0:02:59.7]} 8... Ne7 {[%clk 0:02:55.3]} 9. c4 {[%clk 0:02:59.3]} 9... Qc7
{[%clk 0:02:54.4]} 10. g3 {[%clk 0:02:58.6]} 10... O-O {[%clk 0:02:54]} 11. Qc2
{[%clk 0:02:56.8]} 11... a5 {[%clk 0:02:49]} 12. exd5 {[%clk 0:02:54.7]} 12...
cxd5 {[%clk 0:02:48.4]} 13. Bxh7+ {[%clk 0:02:54.7]} 13... Kh8 {[%clk
0:02:47.6]} 14. cxd5 {[%clk 0:02:52.1]} 14... Nxd5 {[%clk 0:02:47.2]} 15. Qxc7
{[%clk 0:02:51.1]} 15... Bxc7 {[%clk 0:02:46.6]} 16. Be4 {[%clk 0:02:51]} 16...
Bb7 {[%clk 0:02:44.6]} 17. Rd1 {[%clk 0:02:44.1]} 17... Rac8 {[%clk 0:02:44.1]}
18. Nc4 {[%clk 0:02:37.2]} 18... Rfd8 {[%clk 0:02:20.6]} 19. Bg2 {[%clk
0:02:33.3]} 19... a4 {[%clk 0:02:03.6]} 20. Bg5 {[%clk 0:02:31.3]} 20... f6
{[%clk 0:02:03.5]} 21. Bd2 {[%clk 0:02:31.6]} 21... Ba6 {[%clk 0:01:59]} 22.
Rac1 {[%clk 0:02:31.8]} 22... Bxg3 {[%clk 0:01:58.6]} 23. hxg3 {[%clk
0:02:19.7]} 23... Bxc4 {[%clk 0:01:58.5]} 24. Ba5 {[%clk 0:02:15.8]} 24... Re8
{[%clk 0:01:48.7]} 25. a3 {[%clk 0:01:45.7]} 25... Kg8 {[%clk 0:01:23.8]} 26.
Rd4 {[%clk 0:01:31.9]} 26... Bb3 {[%clk 0:01:22]} 27. Re1 {[%clk 0:01:21.5]}
27... Kf7 {[%clk 0:01:20.2]} 28. Rd2 {[%clk 0:01:04.9]} 28... Rc5 {[%clk
0:01:01]} 29. Bxd5 {[%clk 0:00:19.3]} 29... Bxd5 {[%clk 0:00:54.9]} 30. Bb4
{[%clk 0:00:15.9]} 30... Rc4 {[%clk 0:00:53.2]} 31. f4 {[%clk 0:00:13.4]} 31...
Rh8 {[%clk 0:00:52.6]} 32. Kf2 {[%clk 0:00:11]} 32... Rh2+ {[%clk 0:00:35.5]}
33. Kg1 {[%clk 0:00:10.6]} 33... Rh3 {[%clk 0:00:31.8]} 34. Kf2 {[%clk
0:00:10.3]} 34... Rh2+ {[%clk 0:00:24.9]} 35. Kg1 {[%clk 0:00:10.2]} 35... Rxd2
{[%clk 0:00:25.5]} 36. Bxd2 {[%clk 0:00:10]} 36... Rc2 {[%clk 0:00:26.4]} 37.
Re2 {[%clk 0:00:10.3]} 37... Rxb2 {[%clk 0:00:23.9]} 38. Rf2 {[%clk 0:00:10.9]}
38... Rb3 {[%clk 0:00:22.3]} 0-1

[Event "Early-Titled-Tuesday-Blitz-October-03-2023"]
[Site "Chess.com"]
[Date "2023.10.03"]
[Round "1"]
[White "maracayo"]
[Black "vasblesk"]
[Result "0-1"]
[WhiteElo "2396"]
[BlackElo "2718"]
[TimeControl "180+1"]
[EndTime "8:07:29 PDT"]
[Termination "vasblesk won by resignation"]

1. e4 {[%clk 0:03:00.9]} 1... c5 {[%clk 0:02:59.4]} 2. Nf3 {[%clk 0:02:59.9]}
2... g6 {[%clk 0:02:59.7]} 3. d3 {[%clk 0:02:57.1]} 3... Bg7 {[%clk 0:02:59.2]}
4. Be2 {[%clk 0:02:57]} 4... Nc6 {[%clk 0:02:59.7]} 5. O-O {[%clk 0:02:56.8]}
5... e6 {[%clk 0:03:00.1]} 6. c3 {[%clk 0:02:57.1]} 6... Nge7 {[%clk 0:03:00.5]}
7. Nbd2 {[%clk 0:02:57.4]} 7... O-O {[%clk 0:03:00.7]} 8. Re1 {[%clk 0:02:57.8]}
8... d5 {[%clk 0:03:01.1]} 9. Bf1 {[%clk 0:02:57.7]} 9... b6 {[%clk 0:02:59.5]}
10. exd5 {[%clk 0:02:57.2]} 10... exd5 {[%clk 0:02:59.2]} 11. h3 {[%clk
0:02:57.3]} 11... Bb7 {[%clk 0:02:59]} 12. Nb3 {[%clk 0:02:56.6]} 12... Qc7
{[%clk 0:02:59.6]} 13. Bg5 {[%clk 0:02:56.2]} 13... Nf5 {[%clk 0:02:58]} 14. g3
{[%clk 0:02:43]} 14... Rfe8 {[%clk 0:02:55.9]} 15. Rxe8+ {[%clk 0:02:40.1]}
15... Rxe8 {[%clk 0:02:55.4]} 16. Bf4 {[%clk 0:02:40.6]} 16... Qd7 {[%clk
0:02:52.1]} 17. d4 {[%clk 0:02:39.6]} 17... cxd4 {[%clk 0:02:51.5]} 18. Nbxd4
{[%clk 0:02:35.2]} 18... Ncxd4 {[%clk 0:02:51]} 19. cxd4 {[%clk 0:02:34.2]}
19... Re4 {[%clk 0:02:38.3]} 20. Rc1 {[%clk 0:01:56.3]} 20... Qd8 {[%clk
0:01:46.8]} 21. Rc7 {[%clk 0:01:30.6]} 21... Bc8 {[%clk 0:01:34.4]} 22. Rxa7
{[%clk 0:01:27.8]} 22... Nxd4 {[%clk 0:01:27.7]} 23. Ng5 {[%clk 0:01:02.8]}
23... Re7 {[%clk 0:01:22.4]} 24. Ra8 {[%clk 0:00:58.9]} 24... Qd7 {[%clk
0:01:10.6]} 25. Nf3 {[%clk 0:00:43.5]} 25... Ne6 {[%clk 0:00:41.7]} 26. Ba6
{[%clk 0:00:31.4]} 26... Re8 {[%clk 0:00:40.6]} 27. Ne5 {[%clk 0:00:29.1]} 27...
Bxe5 {[%clk 0:00:32.9]} 28. Bxc8 {[%clk 0:00:28]} 28... Rxc8 {[%clk 0:00:28.1]}
29. Rxc8+ {[%clk 0:00:28.2]} 29... Qxc8 {[%clk 0:00:29]} 30. Bxe5 {[%clk
0:00:28.3]} 30... Qc5 {[%clk 0:00:27.4]} 31. Qf3 {[%clk 0:00:26.1]} 31... f5
{[%clk 0:00:19.8]} 32. a4 {[%clk 0:00:22.5]} 32... Ng5 {[%clk 0:00:19.5]} 33.
Qe2 {[%clk 0:00:19]} 33... Nxh3+ {[%clk 0:00:19]} 34. Kg2 {[%clk 0:00:19]} 34...
Ng5 {[%clk 0:00:19.6]} 35. Bc3 {[%clk 0:00:17.8]} 35... Ne4 {[%clk 0:00:19.6]}
36. Be5 {[%clk 0:00:16.5]} 36... Qc4 {[%clk 0:00:19.1]} 37. Qxc4 {[%clk
0:00:15.4]} 37... dxc4 {[%clk 0:00:20]} 38. f3 {[%clk 0:00:15.8]} 38... Nc5
{[%clk 0:00:18.8]} 39. Bc7 {[%clk 0:00:13.9]} 39... Nxa4 {[%clk 0:00:19.2]} 40.
Kf2 {[%clk 0:00:13.7]} 40... b5 {[%clk 0:00:19.7]} 41. Be5 {[%clk 0:00:13]}
41... Kf7 {[%clk 0:00:20.4]} 42. Ke2 {[%clk 0:00:13.3]} 42... Ke6 {[%clk
0:00:21.3]} 43. f4 {[%clk 0:00:13.7]} 43... Kd5 {[%clk 0:00:22.1]} 44. Kd2
{[%clk 0:00:13.7]} 44... Nc5 {[%clk 0:00:22.4]} 45. Kc3 {[%clk 0:00:13.2]} 45...
Ne4+ {[%clk 0:00:23.3]} 46. Kb4 {[%clk 0:00:13.6]} 46... Kc6 {[%clk 0:00:24.2]}
0-1

[Event "Early-Titled-Tuesday-Blitz-October-03-2023"]
[Site "Chess.com"]
[Date "2023.10.03"]
[Round "1"]
[White "Sanyura"]
[Black "Kotofeyca"]
[Result "0-1"]
[WhiteElo "2664"]
[BlackElo "2390"]
[TimeControl "180+1"]
[EndTime "8:07:29 PDT"]
[Termination "Kotofeyca won by resignation"]

1. e4 {[%clk 0:02:58.5]} 1... c5 {[%clk 0:02:59.7]} 2. Nf3 {[%clk 0:02:56.9]}
2... d6 {[%clk 0:03:00]} 3. d4 {[%clk 0:02:56.7]} 3... cxd4 {[%clk 0:03:00.9]}
4. Nxd4 {[%clk 0:02:57.6]} 4... Nf6 {[%clk 0:03:01.4]} 5. Nc3 {[%clk 0:02:49.5]}
5... a6 {[%clk 0:03:01.7]} 6. g3 {[%clk 0:02:48.6]} 6... e5 {[%clk 0:02:57.8]}
7. Nb3 {[%clk 0:02:48]} 7... b5 {[%clk 0:02:57.9]} 8. a4 {[%clk 0:02:43.6]} 8...
b4 {[%clk 0:02:52.9]} 9. Nd5 {[%clk 0:02:43.8]} 9... Bb7 {[%clk 0:02:51.7]} 10.
Bg2 {[%clk 0:02:39.7]} 10... Bxd5 {[%clk 0:02:45.9]} 11. exd5 {[%clk 0:02:40.6]}
11... a5 {[%clk 0:02:46.2]} 12. O-O {[%clk 0:02:35.3]} 12... Be7 {[%clk
0:02:46.2]} 13. Bd2 {[%clk 0:02:32.7]} 13... O-O {[%clk 0:02:43.5]} 14. c3
{[%clk 0:02:33.3]} 14... Na6 {[%clk 0:02:39.9]} 15. cxb4 {[%clk 0:02:32.3]}
15... Nxb4 {[%clk 0:02:40]} 16. Bxb4 {[%clk 0:02:31.6]} 16... axb4 {[%clk
0:02:40.9]} 17. Qd3 {[%clk 0:02:22.7]} 17... Nd7 {[%clk 0:02:34.5]} 18. a5
{[%clk 0:02:13.8]} 18... Qb8 {[%clk 0:02:27.5]} 19. Rfc1 {[%clk 0:02:06.7]}
19... f5 {[%clk 0:02:11.3]} 20. a6 {[%clk 0:01:50.3]} 20... e4 {[%clk
0:02:10.1]} 21. Qe2 {[%clk 0:01:46.5]} 21... Bf6 {[%clk 0:01:59.3]} 22. Na5
{[%clk 0:01:12.9]} 22... Nc5 {[%clk 0:01:40.3]} 23. Nc6 {[%clk 0:01:07]} 23...
Qb6 {[%clk 0:01:40]} 24. Ra5 {[%clk 0:00:59.1]} 24... Nb3 {[%clk 0:01:36.6]} 25.
Rca1 {[%clk 0:00:50.8]} 25... Nxa5 {[%clk 0:01:17.7]} 26. Rxa5 {[%clk
0:00:49.9]} 26... Rfc8 {[%clk 0:01:13]} 27. Ra4 {[%clk 0:00:33.8]} 27... b3
{[%clk 0:01:06.4]} 28. a7 {[%clk 0:00:32.1]} 28... Rxc6 {[%clk 0:00:47.9]} 29.
dxc6 {[%clk 0:00:31.7]} 29... Qxc6 {[%clk 0:00:48.8]} 30. Ra6 {[%clk 0:00:30.7]}
30... Qc5 {[%clk 0:00:32.2]} 31. Bf1 {[%clk 0:00:27.8]} 31... d5 {[%clk
0:00:20.3]} 32. Rxf6 {[%clk 0:00:09.4]} 32... gxf6 {[%clk 0:00:18.8]} 33. Qa6
{[%clk 0:00:10.3]} 33... Qxa7 {[%clk 0:00:17.6]} 34. Qxf6 {[%clk 0:00:10.3]}
34... Qf7 {[%clk 0:00:17.7]} 35. Qg5+ {[%clk 0:00:09.7]} 35... Qg6 {[%clk
0:00:16.6]} 36. Qd2 {[%clk 0:00:08.6]} 36... Rd8 {[%clk 0:00:16]} 37. Qa5 {[%clk
0:00:07.9]} 37... Qd6 {[%clk 0:00:14.1]} 38. Qb5 {[%clk 0:00:08]} 38... d4
{[%clk 0:00:13.6]} 39. Qxb3+ {[%clk 0:00:08.4]} 39... Kh8 {[%clk 0:00:11.5]} 40.
Qb5 {[%clk 0:00:07.9]} 40... d3 {[%clk 0:00:12.4]} 41. Qxf5 {[%clk 0:00:04.6]}
41... d2 {[%clk 0:00:12.6]} 0-1

[Event "Early-Titled-Tuesday-Blitz-October-03-2023"]
[Site "Chess.com"]
[Date "2023.10.03"]
[Round "1"]
[White "HanSchut"]
[Black "LoaySameer"]
[Result "1-0"]
[WhiteElo "2332"]
[BlackElo "2611"]
[TimeControl "180+1"]
[EndTime "8:07:30 PDT"]
[Termination "HanSchut won by resignation"]

1. e4 {[%clk 0:02:58.7]} 1... c5 {[%clk 0:03:00.1]} 2. Nf3 {[%clk 0:02:58.8]}
2... Nc6 {[%clk 0:03:00.3]} 3. d4 {[%clk 0:02:59.7]} 3... cxd4 {[%clk
0:03:00.7]} 4. Nxd4 {[%clk 0:03:00.6]} 4... Nf6 {[%clk 0:03:00.9]} 5. Nc3 {[%clk
0:03:01.4]} 5... e5 {[%clk 0:03:01.4]} 6. Ndb5 {[%clk 0:03:02.2]} 6... d6 {[%clk
0:03:01.8]} 7. Nd5 {[%clk 0:03:03.1]} 7... Nxd5 {[%clk 0:03:01.8]} 8. exd5
{[%clk 0:03:04]} 8... Ne7 {[%clk 0:03:02.5]} 9. c3 {[%clk 0:03:03]} 9... Nf5
{[%clk 0:03:00.2]} 10. a4 {[%clk 0:02:58.2]} 10... Be7 {[%clk 0:02:58.6]} 11.
Bd3 {[%clk 0:02:58.3]} 11... O-O {[%clk 0:02:56.2]} 12. O-O {[%clk 0:02:58.1]}
12... Nh4 {[%clk 0:02:53.5]} 13. f4 {[%clk 0:02:55.6]} 13... a6 {[%clk
0:02:49.8]} 14. Na3 {[%clk 0:02:55.5]} 14... f5 {[%clk 0:02:48.2]} 15. Nc4
{[%clk 0:02:37.6]} 15... Ng6 {[%clk 0:02:32.4]} 16. fxe5 {[%clk 0:02:29.3]}
16... Nxe5 {[%clk 0:02:09.1]} 17. a5 {[%clk 0:02:18.2]} 17... Nxc4 {[%clk
0:01:53.5]} 18. Bxc4 {[%clk 0:02:17.5]} 18... Bf6 {[%clk 0:01:47]} 19. Bf4
{[%clk 0:01:42.9]} 19... g5 {[%clk 0:01:32.8]} 20. Be3 {[%clk 0:01:34]} 20... f4
{[%clk 0:01:33.2]} 21. Bb6 {[%clk 0:01:34.1]} 21... Qe8 {[%clk 0:01:25.5]} 22.
Qe2 {[%clk 0:01:33.5]} 22... Qf7 {[%clk 0:01:09.6]} 23. Rae1 {[%clk 0:01:25]}
23... Bf5 {[%clk 0:01:07.9]} 24. Bd3 {[%clk 0:01:06.4]} 24... Rae8 {[%clk
0:01:04.2]} 25. Qc2 {[%clk 0:01:06.8]} 25... Bxd3 {[%clk 0:00:46]} 26. Qxd3
{[%clk 0:01:07.7]} 26... Be5 {[%clk 0:00:46.7]} 27. b4 {[%clk 0:01:00]} 27...
Rc8 {[%clk 0:00:43.5]} 28. c4 {[%clk 0:00:59]} 28... Qg7 {[%clk 0:00:38]} 29.
Kh1 {[%clk 0:00:47.2]} 29... g4 {[%clk 0:00:25.5]} 30. c5 {[%clk 0:00:46.3]}
30... h5 {[%clk 0:00:19.9]} 31. c6 {[%clk 0:00:40.2]} 31... bxc6 {[%clk
0:00:19.4]} 32. dxc6 {[%clk 0:00:40.2]} 32... Rxc6 {[%clk 0:00:19.7]} 33. Qd5+
{[%clk 0:00:40.7]} 33... Kh8 {[%clk 0:00:19.1]} 34. Qxc6 {[%clk 0:00:41.2]}
34... h4 {[%clk 0:00:19.1]} 35. Rxe5 {[%clk 0:00:30.7]} 35... dxe5 {[%clk
0:00:18.3]} 36. Bc5 {[%clk 0:00:28.3]} 36... Rg8 {[%clk 0:00:17.9]} 37. Qe4
{[%clk 0:00:28.5]} 37... h3 {[%clk 0:00:17.8]} 38. gxh3 {[%clk 0:00:26.4]} 38...
gxh3 {[%clk 0:00:17.6]} 39. Rg1 {[%clk 0:00:27.3]} 39... Qd7 {[%clk 0:00:13.5]}
40. Qxe5+ {[%clk 0:00:25.3]} 40... Rg7 {[%clk 0:00:11.5]} 41. Qxg7+ {[%clk
0:00:25.6]} 41... Qxg7 {[%clk 0:00:12.1]} 42. Rxg7 {[%clk 0:00:26.3]} 42... Kxg7
{[%clk 0:00:13]} 43. Bd6 {[%clk 0:00:27.2]} 43... f3 {[%clk 0:00:12.6]} 44. Kg1
{[%clk 0:00:27.1]} 44... Kf6 {[%clk 0:00:12]} 45. Kf2 {[%clk 0:00:27.1]} 45...
Ke6 {[%clk 0:00:12.9]} 46. Bc5 {[%clk 0:00:27.4]} 46... Kd5 {[%clk 0:00:13.4]}
47. Kxf3 {[%clk 0:00:28.3]} 1-0

[Event "Early-Titled-Tuesday-Blitz-October-03-2023"]
[Site "Chess.com"]
[Date "2023.10.03"]
[Round "1"]
[White "Arifarsky"]
[Black "verrbaa"]
[Result "1-0"]
[WhiteElo "2820"]
[BlackElo "2466"]
[TimeControl "180+1"]
[EndTime "8:07:34 PDT"]
[Termination "Arifarsky won on time"]

1. d4 {[%clk 0:03:00.9]} 1... Nf6 {[%clk 0:02:59.5]} 2. c4 {[%clk 0:03:00.4]}
2... e6 {[%clk 0:02:56.3]} 3. Nf3 {[%clk 0:02:59.8]} 3... d5 {[%clk 0:02:55.9]}
4. Nc3 {[%clk 0:03:00.4]} 4... Bb4 {[%clk 0:02:55.4]} 5. Qa4+ {[%clk 0:02:59.6]}
5... Nc6 {[%clk 0:02:55.2]} 6. e3 {[%clk 0:03:00.2]} 6... O-O {[%clk 0:02:54.2]}
7. Qc2 {[%clk 0:02:58.5]} 7... a6 {[%clk 0:02:51.4]} 8. cxd5 {[%clk 0:02:54.1]}
8... exd5 {[%clk 0:02:50.8]} 9. Bd3 {[%clk 0:02:54.2]} 9... Re8 {[%clk
0:02:24.3]} 10. O-O {[%clk 0:02:47.7]} 10... Bg4 {[%clk 0:02:17.5]} 11. Nd2
{[%clk 0:02:38.1]} 11... Bd6 {[%clk 0:02:09.4]} 12. a3 {[%clk 0:02:36.9]} 12...
Bh5 {[%clk 0:01:58.9]} 13. h3 {[%clk 0:02:35.5]} 13... Bg6 {[%clk 0:01:56.7]}
14. b4 {[%clk 0:02:21.6]} 14... Ne7 {[%clk 0:01:17.1]} 15. Bb2 {[%clk
0:02:11.1]} 15... a5 {[%clk 0:01:12.4]} 16. b5 {[%clk 0:02:03.4]} 16... Qd7
{[%clk 0:01:10.4]} 17. a4 {[%clk 0:02:00.3]} 17... Nc8 {[%clk 0:00:59.5]} 18.
Nf3 {[%clk 0:01:48.2]} 18... Nb6 {[%clk 0:00:55.2]} 19. Rfd1 {[%clk 0:01:45.9]}
19... Ne4 {[%clk 0:00:50.9]} 20. Bxe4 {[%clk 0:01:41.8]} 20... dxe4 {[%clk
0:00:51.8]} 21. Ne5 {[%clk 0:01:40.7]} 21... Bxe5 {[%clk 0:00:49.4]} 22. dxe5
{[%clk 0:01:41.6]} 22... Qe6 {[%clk 0:00:46.9]} 23. Ne2 {[%clk 0:01:41.2]} 23...
Rac8 {[%clk 0:00:34.2]} 24. Nf4 {[%clk 0:01:38.3]} 24... Qc4 {[%clk 0:00:30.1]}
25. Qb1 {[%clk 0:01:32]} 25... Nxa4 {[%clk 0:00:22.9]} 26. Rd4 {[%clk
0:01:31.1]} 26... Nxb2 {[%clk 0:00:13.8]} 27. Rxc4 {[%clk 0:01:29.9]} 27... Nxc4
{[%clk 0:00:14.7]} 28. e6 {[%clk 0:01:26]} 28... fxe6 {[%clk 0:00:12.4]} 29.
Nxg6 {[%clk 0:01:26.4]} 29... hxg6 {[%clk 0:00:12.2]} 30. Qxe4 {[%clk
0:01:27.2]} 30... Nd6 {[%clk 0:00:12]} 31. Qxg6 {[%clk 0:01:27.3]} 31... b6
{[%clk 0:00:12]} 32. Ra4 {[%clk 0:01:25.1]} 32... Rf8 {[%clk 0:00:05.1]} 33.
Qxe6+ {[%clk 0:01:21.1]} 33... Rf7 {[%clk 0:00:05.4]} 34. Rf4 {[%clk 0:01:20.5]}
34... Re8 {[%clk 0:00:03.4]} 35. Qd5 {[%clk 0:01:19.2]} 35... Kf8 {[%clk
0:00:02]} 36. Rxf7+ {[%clk 0:01:16.8]} 36... Nxf7 {[%clk 0:00:02.9]} 37. g4
{[%clk 0:01:04.3]} 37... Re7 {[%clk 0:00:03.8]} 38. Kg2 {[%clk 0:01:02.8]} 38...
Nd6 {[%clk 0:00:04.4]} 39. h4 {[%clk 0:00:54.8]} 39... a4 {[%clk 0:00:04.4]} 40.
Qa2 {[%clk 0:00:52.8]} 40... Re4 {[%clk 0:00:03.5]} 41. f3 {[%clk 0:00:50.9]}
41... Rc4 {[%clk 0:00:02.7]} 42. Kg3 {[%clk 0:00:47.9]} 42... Rb4 {[%clk
0:00:01.4]} 43. Qc2 {[%clk 0:00:39.4]} 43... a3 {[%clk 0:00:01.4]} 44. Qxc7
{[%clk 0:00:38.3]} 44... Ne8 {[%clk 0:00:01.3]} 45. Qxb6 {[%clk 0:00:35.1]}
45... Ra4 {[%clk 0:00:01.7]} 46. Qc5+ {[%clk 0:00:31.3]} 46... Kf7 {[%clk
0:00:02.2]} 47. Qd5+ {[%clk 0:00:30.6]} 47... Kf8 {[%clk 0:00:01.4]} 48. Qb3
{[%clk 0:00:28.9]} 48... a2 {[%clk 0:00:01.1]} 49. Qxa4 {[%clk 0:00:29]} 1-0

[Event "Early-Titled-Tuesday-Blitz-October-03-2023"]
[Site "Chess.com"]
[Date "2023.10.03"]
[Round "1"]
[White "ChesscularGodofchess"]
[Black "Journey_to_GrandMaster_YT"]
[Result "0-1"]
[WhiteElo "2183"]
[BlackElo "2553"]
[TimeControl "180+1"]
[EndTime "8:07:35 PDT"]
[Termination "Journey_to_GrandMaster_YT won by checkmate"]

1. d4 {[%clk 0:02:57.2]} 1... d6 {[%clk 0:03:00]} 2. Nf3 {[%clk 0:02:57.1]} 2...
Nf6 {[%clk 0:02:58.2]} 3. Nbd2 {[%clk 0:02:57.4]} 3... Nbd7 {[%clk 0:02:57.7]}
4. e4 {[%clk 0:02:57.5]} 4... e5 {[%clk 0:02:58.2]} 5. c3 {[%clk 0:02:55.3]}
5... c6 {[%clk 0:02:56]} 6. a4 {[%clk 0:02:54.7]} 6... a5 {[%clk 0:02:55.8]} 7.
Bc4 {[%clk 0:02:54.5]} 7... Be7 {[%clk 0:02:55.5]} 8. O-O {[%clk 0:02:54.3]}
8... O-O {[%clk 0:02:55.7]} 9. Qb3 {[%clk 0:02:39.4]} 9... exd4 {[%clk
0:02:21.1]} 10. cxd4 {[%clk 0:02:39.4]} 10... Qb6 {[%clk 0:02:21.1]} 11. Qa2
{[%clk 0:02:15.3]} 11... d5 {[%clk 0:01:51.3]} 12. exd5 {[%clk 0:01:59.5]} 12...
Nxd5 {[%clk 0:01:51.4]} 13. Re1 {[%clk 0:01:47]} 13... N7f6 {[%clk 0:01:48.1]}
14. Ne4 {[%clk 0:01:29.4]} 14... Bb4 {[%clk 0:01:33.2]} 15. Bd2 {[%clk
0:01:27.7]} 15... Bxd2 {[%clk 0:01:26.1]} 16. Nfxd2 {[%clk 0:01:28.6]} 16...
Qxd4 {[%clk 0:01:22.2]} 17. Nxf6+ {[%clk 0:01:26.4]} 17... Nxf6 {[%clk
0:01:15.2]} 18. Rad1 {[%clk 0:01:24.7]} 18... Bg4 {[%clk 0:01:13.2]} 19. Nf3
{[%clk 0:01:15.4]} 19... Qc5 {[%clk 0:01:12.4]} 20. Re3 {[%clk 0:01:03.4]} 20...
b5 {[%clk 0:00:59.5]} 21. axb5 {[%clk 0:01:00.4]} 21... cxb5 {[%clk 0:00:59.6]}
22. Bf1 {[%clk 0:00:43.6]} 22... h6 {[%clk 0:00:48.1]} 23. Rde1 {[%clk
0:00:42.9]} 23... Be6 {[%clk 0:00:39.6]} 24. Rxe6 {[%clk 0:00:36.8]} 24... fxe6
{[%clk 0:00:39.5]} 25. Rxe6 {[%clk 0:00:37.7]} 25... Qd5 {[%clk 0:00:32.9]} 26.
Qxd5 {[%clk 0:00:27.3]} 26... Nxd5 {[%clk 0:00:33.8]} 27. Re5 {[%clk 0:00:25.6]}
27... Nc7 {[%clk 0:00:29]} 28. Rc5 {[%clk 0:00:24.6]} 28... Rfc8 {[%clk
0:00:24.9]} 29. Nd4 {[%clk 0:00:24.5]} 29... Kh8 {[%clk 0:00:20.2]} 30. Nxb5
{[%clk 0:00:20.6]} 30... Nxb5 {[%clk 0:00:20.2]} 31. Rxb5 {[%clk 0:00:21.5]}
31... Rcb8 {[%clk 0:00:20.4]} 32. b3 {[%clk 0:00:15.8]} 32... Rxb5 {[%clk
0:00:19.6]} 33. Bxb5 {[%clk 0:00:16.7]} 33... Rd8 {[%clk 0:00:19.4]} 34. g3
{[%clk 0:00:14.1]} 34... Rd2 {[%clk 0:00:19.6]} 35. Bc4 {[%clk 0:00:13.5]} 35...
g5 {[%clk 0:00:19.3]} 36. Kg2 {[%clk 0:00:13.1]} 36... g4 {[%clk 0:00:19.1]} 37.
Be6 {[%clk 0:00:11.8]} 37... h5 {[%clk 0:00:19.1]} 38. Bf7 {[%clk 0:00:11.8]}
38... Rb2 {[%clk 0:00:19.1]} 39. h3 {[%clk 0:00:08.6]} 39... gxh3+ {[%clk
0:00:18.6]} 40. Kxh3 {[%clk 0:00:09.5]} 40... Rxf2 {[%clk 0:00:17.8]} 41. Bxh5
{[%clk 0:00:09.2]} 41... Kg7 {[%clk 0:00:17.9]} 42. Bg4 {[%clk 0:00:06.6]} 42...
Kf6 {[%clk 0:00:17.5]} 43. Bd7 {[%clk 0:00:04.7]} 43... Rb2 {[%clk 0:00:16.7]}
44. Ba4 {[%clk 0:00:05]} 44... Kg5 {[%clk 0:00:17]} 45. g4 {[%clk 0:00:03.3]}
45... Kf4 {[%clk 0:00:17.2]} 46. Kh4 {[%clk 0:00:03.7]} 46... Rh2# {[%clk
0:00:17.2]} 0-1